fUSD/lending_fUSD_20260408
["ID","MTS","AMOUNT","RATE_DAILY","PERIOD"]
[420049173,1775632249560,-1500.0,0.00014795,2]
[420049174,1775632249569,-1500.0,0.00014795,2]
[420049175,1775632249579,-1500.0,0.00014795,2]
[420049176,1775632249589,-430.82314799,0.00014795,2]
[420049177,1775632249598,-1500.0,0.00014795,2]
[420049178,1775632249607,-1500.0,0.00014795,2]
[420049179,1775632249617,-1500.0,0.00014795,2]
[420049180,1775632249626,-1500.0,0.00014795,2]
[420049181,1775632249636,-150.0,0.00014797,2]
[420049182,1775632249645,-150.0,0.00014798,2]
[420049183,1775632249655,-150.0,0.00014802,2]
[420049184,1775632249664,-150.0,0.00014806,2]
[420049185,1775632249674,-150.0,0.00014824,2]
[420049186,1775632249683,-150.0,0.00014826,2]
[420049187,1775632249692,-150.0,0.0001483,2]
[420049188,1775632249702,-150.0,0.00014831,2]
[420049189,1775632249711,-287.35,0.00014833,2]
[420049190,1775632249721,-150.0,0.00014837,2]
[420049191,1775632249731,-150.0,0.00014846,2]
[420049192,1775632249740,-150.0,0.00014849,2]
[420049193,1775632249750,-150.0,0.00014864,2]
[420049194,1775632249760,-150.0,0.00014868,2]
[420049195,1775632249769,-150.0,0.00014872,2]
[420049196,1775632249779,-150.0,0.00014872,2]
[420049197,1775632249789,-150.0,0.00014875,2]
[420049198,1775632249798,-150.0,0.00014891,2]
[420049199,1775632249808,-150.0,0.00014897,2]
[420049200,1775632249817,-150.0,0.00014898,2]
[420049201,1775632249826,-150.0,0.00014901,2]
[420049202,1775632249835,-150.0,0.00014914,2]
[420049203,1775632249845,-150.0,0.00014914,2]
[420049204,1775632249855,-150.0,0.00014914,2]
[420049205,1775632249863,-150.0,0.00014914,2]
[420049206,1775632249873,-150.0,0.00014914,2]
[420049207,1775632249883,-150.0,0.00014914,2]
[420049208,1775632249893,-150.0,0.00014927,2]
[420049209,1775632249903,-150.0,0.00014929,2]
[420049210,1775632249912,-150.0,0.0001493,2]
[420049211,1775632249921,-150.0,0.00014936,2]
[420049212,1775632249931,-150.0,0.00014952,2]
[420049213,1775632249940,-150.0,0.00014955,2]
[420049214,1775632249950,-150.0,0.00014955,2]
[420049215,1775632249959,-150.0,0.0001496,2]
[420049216,1775632249969,-227.279781,0.00014962,2]
[420049217,1775632249978,-33107.94811013,0.00014962,2]
[420049218,1775632249988,-150.0,0.00014964,2]
[420049219,1775632249998,-150.0,0.00014978,2]
[420049220,1775632250007,-150.0,0.00014981,2]
[420049221,1775632250017,-150.0,0.00014991,2]
[420049222,1775632250026,-150.0,0.00014996,2]
[420049223,1775632250036,-150.0,0.00014997,2]
[420049224,1775632250047,-189.881198,0.00014998,7]
[420049225,1775632250056,-197.096676,0.00014998,2]
[420049226,1775632250066,-205.125201,0.00014998,7]
[420049227,1775632250075,-300.0,0.00015,2]
[420049228,1775632250085,-160.0,0.00015,2]
[420049229,1775632250094,-2068.01430131,0.00015,2]
[420049230,1775632250103,-2756.92717347,0.00015,2]
[420049231,1775632250113,-1007.07827575,0.00015,2]
[420049232,1775632250123,-150.0,0.00015001,2]
[420049233,1775632250132,-150.0,0.00015004,2]
[420049234,1775632250141,-150.0,0.00015021,2]
[420049235,1775632250151,-150.0,0.00015026,2]
[420049236,1775632250160,-150.0,0.0001503,2]
[420049237,1775632250170,-150.0,0.00015031,2]
[420049238,1775632250179,-150.0,0.00015038,2]
[420049239,1775632250188,-150.0,0.00015038,2]
[420049240,1775632250197,-150.0,0.00015045,2]
[420049241,1775632250206,-150.0,0.00015052,2]
[420049242,1775632250215,-150.0,0.00015055,2]
[420049243,1775632250225,-150.0,0.00015064,2]
[420049244,1775632250235,-500.0,0.00015068,2]
[420049245,1775632250244,-150.0,0.00015071,2]
[420049246,1775632250254,-150.0,0.00015079,2]
[420049247,1775632250263,-150.0,0.00015081,2]
[420049248,1775632250273,-150.0,0.00015083,2]
[420049249,1775632250282,-150.0,0.00015088,2]
[420049250,1775632250291,-150.0,0.00015097,2]
[420049251,1775632250301,-150.0,0.00015107,2]
[420049252,1775632250310,-150.0,0.00015114,2]
[420049253,1775632250319,-150.0,0.00015116,2]
[420049254,1775632250328,-150.0,0.0001512,2]
[420049255,1775632250337,-150.0,0.0001512,2]
[420049256,1775632250346,-150.0,0.00015131,2]
[420049257,1775632250356,-150.0,0.00015132,2]
[420049258,1775632250365,-150.0,0.00015145,2]
[420049259,1775632250374,-150.0,0.00015158,2]
[420049260,1775632250383,-150.0,0.0001516,2]
[420049261,1775632250392,-150.0,0.00015162,2]
[420049262,1775632250401,-150.0,0.00015164,2]
[420049263,1775632250411,-150.0,0.00015175,2]
[420049264,1775632250420,-150.0,0.00015175,2]
[420049265,1775632250429,-150.0,0.00015175,2]
[420049266,1775632250439,-150.0,0.00015184,2]
[420049267,1775632250448,-155.32006583,0.00015194,2]
[420049268,1775632250458,-150.0,0.00015198,2]
[420049269,1775632250466,-150.0,0.00015203,2]
[420049270,1775632250476,-150.0,0.00015203,2]
[420049271,1775632250486,-150.0,0.00015205,2]
[420049272,1775632250495,-150.0,0.00015206,2]
[420049273,1775632250504,-150.0,0.0001521,2]
[420049274,1775632250514,-150.0,0.00015231,2]
[420049275,1775632250523,-150.0,0.00015235,2]
[420049276,1775632250532,-150.0,0.00015237,2]
[420049277,1775632250541,-150.0,0.00015244,2]
[420049278,1775632250551,-150.0,0.0001525,2]
[420049279,1775632250560,-150.0,0.00015261,2]
[420049280,1775632250570,-150.0,0.00015263,2]
[420049281,1775632250580,-150.0,0.00015264,2]
[420049282,1775632250589,-150.0,0.00015268,2]
[420049283,1775632250598,-2683.73653912,0.00015273,2]
[420049284,1775632250607,-150.0,0.00015286,2]
[420049285,1775632250616,-150.0,0.00015286,2]
[420049286,1775632250625,-150.0,0.00015287,2]
[420049287,1775632250634,-150.0,0.00015295,2]
[420049288,1775632250643,-150.0,0.00015298,2]
[420049289,1775632250653,-150.0,0.00015298,2]
[420049290,1775632250662,-150.0,0.00015306,2]
[420049291,1775632250672,-150.0,0.00015306,2]
[420049292,1775632250681,-150.0,0.00015313,2]
[420049293,1775632250690,-150.0,0.00015327,2]
[420049294,1775632250699,-150.0,0.00015329,2]
[420049295,1775632250709,-150.0,0.00015331,2]
[420049296,1775632250718,-150.0,0.00015338,2]
[420049297,1775632250728,-150.0,0.0001534,2]
[420049298,1775632250737,-2000.0,0.00015342,2]
[420049299,1775632250746,-2000.0,0.00015342,2]
[420049300,1775632250756,-2000.0,0.00015342,2]
[420049301,1775632250765,-2000.0,0.00015342,2]
[420049302,1775632250775,-2000.0,0.00015342,2]
[420049303,1775632250784,-1951.88193642,0.00015342,2]
[420049304,1775632250794,-2000.0,0.00015342,2]
[420049305,1775632250803,-2000.0,0.00015342,2]
[420049306,1775632250813,-150.0,0.0001535,2]
[420049307,1775632250822,-1573.0,0.00015358,2]
[420049308,1775632250832,-150.0,0.0001536,2]
[420049309,1775632250841,-150.0,0.00015364,2]
[420049310,1775632250851,-150.0,0.00015365,2]
[420049311,1775632250861,-150.0,0.00015368,2]
[420049312,1775632250870,-150.0,0.00015368,2]
[420049313,1775632250879,-150.0,0.00015385,2]
[420049314,1775632250888,-150.0,0.0001539,2]
[420049315,1775632250898,-150.0,0.00015391,2]
[420049316,1775632250909,-150.0,0.00015398,2]
[420049317,1775632250918,-506.0,0.00015407,4]
[420049318,1775632250927,-150.0,0.00015409,2]
[420049319,1775632250937,-447.28942319,0.0001541,2]
[420049320,1775632250946,-150.0,0.00015416,2]
[420049321,1775632250956,-150.0,0.00015422,2]
[420049322,1775632250966,-150.0,0.0001543,2]
[420049323,1775632250986,-150.0,0.00015431,2]
[420049324,1775632250995,-150.0,0.00015437,2]
[420049325,1775632251005,-150.0,0.00015437,2]
[420049326,1775632251014,-150.0,0.00015441,2]
[420049327,1775632251024,-150.0,0.00015451,2]
[420049328,1775632251033,-150.0,0.00015451,2]
[420049329,1775632251043,-150.0,0.00015452,2]
[420049330,1775632251052,-150.0,0.00015465,2]
[420049331,1775632251061,-150.0,0.00015467,2]
[420049332,1775632251070,-3034.76,0.00015471,2]
[420049333,1775632251079,-1050.6,0.00015471,2]
[420049334,1775632251089,-150.0,0.00015474,2]
[420049335,1775632251099,-150.0,0.00015483,2]
[420049336,1775632251108,-150.0,0.00015492,2]
[420049337,1775632251118,-150.0,0.00015493,2]
[420049338,1775632251128,-150.0,0.00015498,2]
[420049339,1775632251138,-150.0,0.00015514,2]
[420049340,1775632251148,-150.0,0.00015518,2]
[420049341,1775632251157,-150.0,0.00015519,2]
[420049342,1775632251167,-150.0,0.00015524,2]
[420049343,1775632251183,-150.0,0.00015532,2]
[420049344,1775632251192,-150.0,0.00015533,2]
[420049345,1775632251202,-150.0,0.00015533,2]
[420049346,1775632251212,-150.0,0.00015544,2]
[420049347,1775632251222,-150.0,0.00015545,2]
[420049348,1775632251231,-447.28942319,0.00015563,2]
[420049349,1775632251241,-150.0,0.00015564,2]
[420049350,1775632251251,-150.0,0.00015565,2]
[420049351,1775632251260,-150.0,0.00015568,2]
[420049352,1775632251270,-150.0,0.0001557,2]
[420049353,1775632251279,-150.0,0.00015575,2]
[420049354,1775632251289,-150.0,0.00015576,2]
[420049355,1775632251298,-150.0,0.00015596,2]
[420049356,1775632251308,-150.0,0.00015598,2]
[420049357,1775632251317,-33107.94811013,0.000156,2]
[420049358,1775632251326,-150.0,0.00015606,2]
[420049359,1775632251335,-150.0,0.00015609,2]
[420049360,1775632251345,-150.0,0.00015611,2]
[420049361,1775632251354,-150.0,0.00015616,2]
[420049362,1775632251364,-150.0,0.00015616,2]
[420049363,1775632251374,-150.0,0.00015621,2]
[420049364,1775632251384,-150.0,0.00015632,2]
[420049365,1775632251393,-150.0,0.00015637,2]
[420049366,1775632251402,-150.0,0.00015647,2]
[420049367,1775632251412,-150.0,0.00015654,2]
[420049368,1775632251421,-150.0,0.00015657,2]
[420049369,1775632251431,-150.0,0.00015665,2]
[420049370,1775632251440,-150.0,0.00015668,2]
[420049371,1775632251450,-150.0,0.00015673,2]
[420049372,1775632251459,-368.94634702,0.0001569,2]
[420049373,1775632251469,-202.16587278,0.00015699,2]
[420049374,1775632251478,-277.86809384,0.00015699,2]
[420049375,1775632251488,-264.00494396,0.00015699,2]
[420049376,1775632251498,-299.8368581,0.00015699,2]
[420049377,1775632251508,-257.21753865,0.00015699,2]
[420049378,1775632251517,-154.96470644,0.00015699,2]
[420049379,1775632251527,-235.51154759,0.00015699,2]
[420049380,1775632251536,-262.25985033,0.00015699,2]
[420049381,1775632251546,-213.91542621,0.00015699,2]
[420049382,1775632251556,-267.96405061,0.00015699,2]
[420049383,1775632251565,-160.91577892,0.00015699,2]
[420049384,1775632251575,-215.39830433,0.00015699,2]
[420049385,1775632251584,-686.05,0.00015699,2]
[420049386,1775632251594,-686.05,0.00015699,2]
[420049387,1775632251603,-686.05,0.00015699,2]
[420049388,1775632251613,-686.05,0.00015699,2]
[420049389,1775632251623,-686.05,0.00015699,2]
[420049390,1775632251632,-686.1328036,0.00015699,2]
[420049391,1775632251641,-1059663.85705549,0.000157,2]
[420049392,1775632253015,-5691.908,0.000157,2]
[420049393,1775632253069,-1046.57478197,0.000157,2]
[420049394,1775632253080,-533.55688296,0.000157,2]
[420049395,1775632253109,-466.17871469,0.000157,2]
[420049396,1775632253122,-1191.51179554,0.000157,2]
[420049397,1775632256840,-0.02430995,0.0001,2]
[420049398,1775632256853,-626.95495423,0.0001,2]
[420049399,1775632256863,-166.95077313,0.00010197,2]
[420049400,1775632256873,-1000.0,0.00013699,2]
[420049401,1775632256882,-3896.48002372,0.000157,2]
[420049402,1775632257429,-350.7904,9.757e-05,2]
[420049403,1775632257439,-151.0,0.00010481,2]
[420049404,1775632257448,-506.0,0.000131,2]
[420049405,1775632257458,-1000.0,0.00013699,15]
[420049406,1775632257468,-17453.37054704,0.000157,2]
[420049407,1775632257556,-2690.11869035,0.000157,2]
[420049408,1775632257571,-337.54505367,0.000157,2]
[420049409,1775632257763,-1337.71693204,0.000157,2]
[420049410,1775632258011,-2626.41280951,0.000157,2]
[420049411,1775632258024,-2495.02592623,0.000157,2]
[420049412,1775632258080,-894.91738156,0.000157,2]
[420049413,1775632290439,-290.0,9.757e-05,2]
[420049415,1775632306394,-6431.66984945,9.843e-05,2]
[420049416,1775632306503,-10000.01,9.843e-05,2]
[420049417,1775632306613,-10000.01,9.843e-05,2]
[420049418,1775632307035,-10000.01,9.843e-05,2]
[420049419,1775632307055,-10000.01,9.843e-05,2]
[420049420,1775632307085,-10000.01,9.843e-05,2]
[420049421,1775632307174,-10000.01,9.843e-05,2]
[420049422,1775632307284,-10000.01,9.843e-05,2]
[420049423,1775632307382,-10000.01,9.843e-05,2]
[420049424,1775632307713,-10000.01,9.843e-05,2]
[420049425,1775632313131,-10000.01,9.843e-05,2]
[420049426,1775632314243,-10000.01,9.843e-05,2]
[420049427,1775632314493,-10000.01,9.843e-05,2]
[420049428,1775632314714,-10000.01,9.843e-05,2]
[420049429,1775632314911,-10000.01,9.843e-05,2]
[420049430,1775632315137,-10000.01,9.843e-05,2]
[420049431,1775632315257,-10000.01,9.843e-05,2]
[420049432,1775632315384,-10000.01,9.843e-05,2]
[420049433,1775632315484,-10000.01,9.843e-05,2]
[420049434,1775632315582,-10000.01,9.843e-05,2]
[420049435,1775632360145,-500.0,9.823e-05,2]
[420049436,1775632360176,-500.0,9.823e-05,2]
[420049437,1775632360207,-151.0,9.84e-05,2]
[420049438,1775632360237,-449.0,9.842e-05,2]
[420049439,1775632361755,10000.01,9.773e-05,2]
[420049440,1775632361780,2313.136328,9.773e-05,2]
[420049441,1775632364258,-51.0,9.842e-05,2]
[420049442,1775632364292,-229.69189768,9.842e-05,2]
[420049443,1775632364324,-200.0,9.842e-05,2]
[420049444,1775632364355,-500.0,9.842e-05,2]
[420049445,1775632364390,-352.62699492,9.842e-05,2]
[420049446,1775632364428,-187.08168807,9.842e-05,2]
[420049447,1775632364461,-166.84247998,9.842e-05,2]
[420049448,1775632364500,-500.0,9.842e-05,2]
[420049449,1775632364541,-377.49044706,9.842e-05,2]
[420049450,1775632364575,-500.0,9.842e-05,2]
[420049451,1775632364611,-291.7036287,9.842e-05,2]
[420049452,1775632364644,-500.0,9.842e-05,2]
[420049453,1775632370306,500.0,9.842e-05,2]
[420049454,1775632370364,500.0,9.842e-05,2]
[420049455,1775632370452,235.94214678,9.842e-05,2]
[420049457,1775632380042,-300.0,9.842e-05,2]
[420049458,1775632380074,-150.0,9.842e-05,2]
[420049459,1775632381435,292.0,9.842e-05,2]
[420049460,1775632381478,300.0,9.842e-05,2]
[420049461,1775632394566,-5000.0,9.842e-05,2]
[420049462,1775632440965,300.0,9.842e-05,2]
[420049463,1775632442173,1200.0,9.842e-05,2]
[420049464,1775632466477,179.0,6.795e-05,2]
[420049465,1775632466730,177.0,6.795e-05,2]
[420049466,1775632466981,177.0,6.795e-05,2]
[420049467,1775632467232,177.0,6.795e-05,2]
[420049468,1775632468200,254.0,6.795e-05,2]
[420049469,1775632472037,500.0,9.842e-05,2]
[420049470,1775632472144,500.0,9.842e-05,2]
[420049471,1775632472200,500.0,9.842e-05,2]
[420049472,1775632472251,500.0,9.842e-05,2]
[420049473,1775632472305,500.0,9.842e-05,2]
[420049474,1775632472360,305.28720619,9.842e-05,2]
[420049476,1775632501107,1200.0,9.842e-05,2]
[420049477,1775632501138,300.0,9.842e-05,2]
[420049478,1775632501999,150.0,9.842e-05,2]
[420049479,1775632502059,300.0,9.842e-05,2]
[420049480,1775632519002,2780.72279381,9.808e-05,2]
[420049481,1775632519025,560.27720619,9.808e-05,2]
[420049482,1775632546176,160.78432837,9.842e-05,2]
[420049483,1775632555952,500.0,9.842e-05,2]
[420049484,1775632555999,554.19254009,9.842e-05,2]
[420049485,1775632561110,500.0,9.842e-05,2]
[420049486,1775632561140,629.37241367,9.842e-05,2]
[420049487,1775632561451,300.0,9.842e-05,2]
[420049488,1775632566348,500.0,9.842e-05,2]
[420049489,1775632566385,351.42408781,9.842e-05,2]
[420049490,1775632566426,500.0,9.842e-05,2]
[420049491,1775632572620,442.21605325,9.842e-05,2]
[420049492,1775632572975,500.0,9.842e-05,2]
[420049493,1775632573873,500.0,9.842e-05,2]
[420049494,1775632573926,500.0,9.842e-05,2]
[420049495,1775632573980,183.73519263,9.842e-05,2]
[420049496,1775632591293,269.562404,9.842e-05,2]
[420049497,1775632591323,500.0,9.842e-05,2]
[420049498,1775632591409,500.0,9.842e-05,2]
[420049499,1775632591507,447.95431083,9.842e-05,2]
[420049500,1775632596591,1284.25,9.111e-05,2]
[420049501,1775632607714,249.16124938,9.842e-05,2]
[420049502,1775632617324,67.08021378,9.842e-05,2]
[420049503,1775632617350,184.8180704,9.842e-05,2]
[420049504,1775632617386,500.0,9.842e-05,2]
[420049505,1775632617415,158.6705802,9.842e-05,2]
[420049506,1775632617462,500.0,9.842e-05,2]
[420049507,1775632618054,8656.5213494,9.743e-05,2]
[420049508,1775632618081,10000.01,9.743e-05,2]
[420049509,1775632618105,10000.01,9.743e-05,2]
[420049510,1775632618129,10000.01,9.743e-05,2]
[420049511,1775632618152,10000.01,9.743e-05,2]
[420049512,1775632618182,10000.01,9.743e-05,2]
[420049513,1775632618218,10000.01,9.743e-05,2]
[420049514,1775632618248,10000.01,9.743e-05,2]
[420049515,1775632618282,10000.01,9.743e-05,2]
[420049516,1775632619721,-3073.8512506,9.743e-05,2]
[420049517,1775632623945,2500.0,9.743e-05,2]
[420049518,1775632642456,2273.91,0.000161,120]
[420049519,1775632681551,150.0,9.842e-05,2]
[420049520,1775632681711,300.0,9.842e-05,2]
[420049521,1775632685650,500.0,9.842e-05,2]
[420049522,1775632685712,205.15950275,9.842e-05,2]
[420049523,1775632685961,500.0,9.842e-05,2]
[420049524,1775632698868,500.0,9.842e-05,2]
[420049525,1775632698919,500.0,9.842e-05,2]
[420049526,1775632698981,500.0,9.842e-05,2]
[420049527,1775632699028,500.0,9.842e-05,2]
[420049528,1775632699067,500.0,9.842e-05,2]
[420049529,1775632699104,500.0,9.842e-05,2]
[420049530,1775632699164,500.0,9.842e-05,2]
[420049531,1775632699616,500.0,9.842e-05,2]
[420049532,1775632699658,500.0,9.842e-05,2]
[420049533,1775632699723,500.0,9.842e-05,2]
[420049534,1775632699844,500.0,9.842e-05,2]
[420049535,1775632699936,500.0,9.842e-05,2]
[420049536,1775632699983,500.0,9.842e-05,2]
[420049537,1775632700035,500.0,9.842e-05,2]
[420049538,1775632700090,500.0,9.842e-05,2]
[420049539,1775632700127,500.0,9.842e-05,2]
[420049540,1775632700198,344.85049725,9.842e-05,2]
[420049541,1775632700229,155.14950275,9.842e-05,2]
[420049542,1775632700267,500.0,9.842e-05,2]
[420049543,1775632700348,500.0,9.842e-05,2]
[420049544,1775632700410,500.0,9.842e-05,2]
[420049545,1775632700464,500.0,9.842e-05,2]
[420049546,1775632700580,500.0,9.842e-05,2]
[420049547,1775632700628,500.0,9.842e-05,2]
[420049548,1775632700669,500.0,9.842e-05,2]
[420049549,1775632700774,500.0,9.842e-05,2]
[420049550,1775632700829,500.0,9.842e-05,2]
[420049551,1775632700882,500.0,9.842e-05,2]
[420049552,1775632700943,500.0,9.842e-05,2]
[420049553,1775632701009,500.0,9.842e-05,2]
[420049554,1775632701057,500.0,9.842e-05,2]
[420049555,1775632701095,358.75605681,9.842e-05,2]
[420049557,1775632714984,500.0,9.842e-05,2]
[420049558,1775632715023,500.0,9.842e-05,2]
[420049559,1775632715062,500.0,9.842e-05,2]
[420049560,1775632715103,500.0,9.842e-05,2]
[420049561,1775632715143,500.0,9.842e-05,2]
[420049562,1775632715257,486.10444044,9.842e-05,2]
[420049563,1775632715290,13.89555956,9.842e-05,2]
[420049564,1775632715340,500.0,9.842e-05,2]
[420049565,1775632715378,500.0,9.842e-05,2]
[420049566,1775632715423,500.0,9.842e-05,2]
[420049567,1775632715465,500.0,9.842e-05,2]
[420049568,1775632715534,500.0,9.842e-05,2]
[420049569,1775632717870,350.7904,9.742e-05,2]
[420049577,1775632729715,5491.6129,9.743e-05,2]
[420049594,1775632772250,1000.0,9.842e-05,2]
[420049595,1775632773609,1001.80981936,9.842e-05,2]
[420049598,1775632781710,2500.0,9.743e-05,2]
[420049599,1775632801794,300.0,9.842e-05,2]
[420049612,1775632830724,4012.1343,9.743e-05,2]
[420049613,1775632837701,-250.0,9.843e-05,2]
[420049614,1775632837729,-5000.0,9.843e-05,2]
[420049615,1775632837756,-150.0,9.843e-05,2]
[420049616,1775632837783,-611837.38554967,9.843e-05,2]
[420049617,1775632853228,-6188.7085463,9.843e-05,2]
[420049618,1775632853248,-10000.01,9.843e-05,2]
[420049619,1775632853288,-10000.01,9.843e-05,2]
[420049620,1775632853342,-10000.01,9.843e-05,2]
[420049621,1775632855544,-10000.01,9.843e-05,2]
[420049622,1775632855654,-10000.01,9.843e-05,2]
[420049623,1775632855753,-10000.01,9.843e-05,2]
[420049624,1775632855885,-10000.01,9.843e-05,2]
[420049625,1775632856045,-10000.01,9.843e-05,2]
[420049626,1775632856140,-10000.01,9.843e-05,2]
[420049627,1775632871187,4680.0,9.843e-05,3]
[420049628,1775632877415,153.0,9.843e-05,3]
[420049629,1775632883749,2615.791861,9.792e-05,2]
[420049630,1775632887496,200.0,9.8e-05,2]
[420049631,1775632888246,358.536,9.646e-05,2]
[420049632,1775632888283,5882.603,9.646e-05,2]
[420049633,1775632890715,235.19,9.339e-05,2]
[420049636,1775632926113,382.7709,9.743e-05,2]
[420049637,1775632927170,153.0,9.339e-05,3]
[420049638,1775632928641,951.284395,7.945e-05,2]
[420049639,1775632943721,2500.0,9.743e-05,2]
[420049642,1775632974289,276.57352178,9.792e-05,4]
[420049643,1775632985430,4446.0,9.792e-05,3]
[420049646,1775632991499,153.0,9.792e-05,3]
[420049647,1775632993011,3826.0757,9.743e-05,2]
[420049648,1775633001511,150.0,9.726e-05,2]
[420049649,1775633001541,500.0,9.726e-05,2]
[420049650,1775633001656,500.0,9.726e-05,2]
[420049651,1775633001706,500.0,9.726e-05,2]
[420049652,1775633001807,500.0,9.726e-05,2]
[420049653,1775633001873,189.879005,9.726e-05,2]
[420049654,1775633001897,310.120995,9.726e-05,2]
[420049655,1775633001950,153.37566176,9.726e-05,2]
[420049656,1775633002016,500.0,9.726e-05,2]
[420049657,1775633002053,500.0,9.726e-05,2]
[420049658,1775633002089,420.12756453,9.726e-05,2]
[420049659,1775633002150,500.0,9.726e-05,2]
[420049660,1775633002187,500.0,9.726e-05,2]
[420049661,1775633002291,150.0,9.726e-05,2]
[420049662,1775633002349,500.0,9.726e-05,2]
[420049663,1775633002391,272.94970253,9.726e-05,2]
[420049664,1775633002446,500.0,9.726e-05,2]
[420049665,1775633002479,500.0,9.726e-05,2]
[420049667,1775633002548,500.0,9.726e-05,2]
[420049668,1775633002582,500.0,9.726e-05,2]
[420049669,1775633002649,500.0,9.726e-05,2]
[420049670,1775633002685,500.0,9.726e-05,2]
[420049671,1775633002792,500.0,9.726e-05,2]
[420049672,1775633002830,500.0,9.726e-05,2]
[420049673,1775633002938,500.0,9.726e-05,2]
[420049674,1775633002982,500.0,9.726e-05,2]
[420049675,1775633003103,500.0,9.726e-05,2]
[420049676,1775633003140,500.0,9.726e-05,2]
[420049677,1775633003246,193.43607618,9.726e-05,2]
[420049678,1775633003273,306.56392382,9.726e-05,2]
[420049679,1775633003326,501.37015049,9.726e-05,2]
[420049680,1775633003458,500.0,9.726e-05,2]
[420049681,1775633003489,150.0,9.726e-05,2]
[420049682,1775633003546,500.0,9.726e-05,2]
[420049683,1775633003719,500.0,9.726e-05,2]
[420049684,1775633003846,500.0,9.726e-05,2]
[420049685,1775633003996,500.0,9.726e-05,2]
[420049686,1775633004108,500.0,9.726e-05,2]
[420049687,1775633004150,500.0,9.726e-05,2]
[420049688,1775633004198,500.0,9.726e-05,2]
[420049689,1775633004263,500.0,9.726e-05,2]
[420049690,1775633004630,500.0,9.726e-05,2]
[420049691,1775633004698,500.0,9.726e-05,2]
[420049692,1775633004743,500.0,9.726e-05,2]
[420049693,1775633004803,500.0,9.726e-05,2]
[420049694,1775633005341,500.0,9.726e-05,2]
[420049695,1775633006354,226.83643244,9.726e-05,2]
[420049696,1775633006622,300.0,0.0001,3]
[420049697,1775633006663,150.0,9.726e-05,2]
[420049698,1775633006733,500.0,9.726e-05,2]
[420049699,1775633006811,500.0,9.726e-05,2]
[420049700,1775633006879,500.0,9.726e-05,2]
[420049701,1775633006985,165.23949325,9.726e-05,2]
[420049702,1775633007008,334.76050675,9.726e-05,2]
[420049703,1775633007057,150.0,9.726e-05,2]
[420049704,1775633007099,500.0,9.726e-05,2]
[420049705,1775633007149,150.0,9.726e-05,2]
[420049706,1775633007182,500.0,9.726e-05,2]
[420049707,1775633007216,150.0,9.726e-05,2]
[420049708,1775633007265,500.0,9.726e-05,2]
[420049709,1775633007299,150.0,9.726e-05,2]
[420049710,1775633007341,500.0,9.726e-05,2]
[420049711,1775633007406,500.0,9.726e-05,2]
[420049712,1775633007461,150.0,9.726e-05,2]
[420049713,1775633007492,150.0,9.726e-05,2]
[420049714,1775633007528,500.0,9.726e-05,2]
[420049715,1775633007566,150.0,9.726e-05,2]
[420049716,1775633007985,250.0,9.726e-05,2]
[420049717,1775633008025,500.0,9.726e-05,2]
[420049718,1775633008080,150.0,9.726e-05,2]
[420049719,1775633008166,150.0,9.726e-05,2]
[420049720,1775633008203,500.0,9.726e-05,2]